fUSD/lending_fUSD_20240804
["ID","MTS","AMOUNT","RATE_DAILY","PERIOD"]
[334083440,1722750644666,-1736.29339277,0.00014156,2]
[334083441,1722750644678,-3162.60000008,0.00014156,2]
[334083461,1722750646687,-789.99,0.00014156,2]
[334083462,1722750646912,-2839.13560359,0.00011321,2]
[334083463,1722750646922,-411.17547773,0.00012825,2]
[334083464,1722750646942,-75.35703735,0.00012825,2]
[334083465,1722750646952,-322.78278891,0.00013451,2]
[334083466,1722750646962,-11843.27536417,0.00014156,2]
[334083469,1722750702077,1000.0,0.00018,30]
[334083514,1722751393049,184.0,0.00017989,120]
[334083516,1722751403755,500.0,0.00024932,120]
[334083520,1722751427002,-150.166,0.00011016,2]
[334083521,1722751427023,-150.0,0.00011016,2]
[334083522,1722751427045,-300.0,0.00011104,2]
[334083523,1722751427066,-10526.6186532,0.00011105,2]
[334083524,1722751427088,-155.1,0.00011132,2]
[334083525,1722751427109,-254.0763501,0.00011186,2]
[334083526,1722751427132,-150.0,0.00011315,2]
[334083527,1722751427155,-200.65,0.00011316,2]
[334083528,1722751427178,-621.0,0.00011316,2]
[334083529,1722751427201,-1925.0,0.00011316,2]
[334083530,1722751427225,-21734.0,0.00011316,2]
[334083531,1722751427247,-1256.0,0.00011316,2]
[334083532,1722751427269,-1582.0,0.00011316,2]
[334083533,1722751427294,-1135.0,0.00011316,2]
[334083534,1722751427316,-811.0,0.00011316,2]
[334083535,1722751427339,-446.0,0.00011316,2]
[334083536,1722751427361,-451.0,0.00011316,2]
[334083537,1722751427383,-153.463,0.00011316,2]
[334083538,1722751427407,-1844.148,0.00011316,2]
[334083539,1722751427431,-420.0,0.00012201,2]
[334083540,1722751427455,-328.00522683,0.00012391,2]
[334083541,1722751427478,-1068.76,0.00012896,5]
[334083542,1722751427502,-176.07,0.00013085,2]
[334083543,1722751427526,-320.0,0.0001338,2]
[334083544,1722751427548,-5188.85,0.000134,2]
[334083545,1722751427570,-587.0,0.00013406,2]
[334083546,1722751427592,-155.1,0.00013522,2]
[334083547,1722751427616,-327.59,0.00013688,2]
[334083548,1722751427637,-200.0,0.00013699,2]
[334083549,1722751427659,-500.0,0.00013699,2]
[334083550,1722751427680,-2751.0,0.00013699,2]
[334083551,1722751427701,-1005.93764878,0.00013873,2]
[334083552,1722751427722,-22641.85233073,0.00013889,2]
[334083553,1722751427744,-35700.88540887,0.00013889,2]
[334083554,1722751427766,-206.045679,0.0001389,2]
[334083555,1722751427788,-453.025564,0.0001389,2]
[334083556,1722751427810,-453.025564,0.0001389,2]
[334083557,1722751427833,-151.0,0.0001389,2]
[334083558,1722751427855,-15471.57272848,0.00013899,2]
[334083559,1722751427875,-5399.77968871,0.00013899,2]
[334083560,1722751427897,-606.455175,0.000139,2]
[334083561,1722751427918,-606.455175,0.000139,2]
[334083562,1722751427941,-322.78278891,0.00013937,2]
[334083563,1722751427965,-7271.36467137,0.00013979,2]
[334083564,1722751427989,-4480.72447728,0.00013979,2]
[334083565,1722751428012,-3976.81397414,0.00013999,2]
[334083566,1722751428036,-150.0,0.00014016,2]
[334083567,1722751428058,-150.0,0.00014016,2]
[334083568,1722751428080,-206.045679,0.00014136,2]
[334083569,1722751428102,-453.025564,0.00014136,2]
[334083570,1722751428125,-453.025564,0.00014136,2]
[334083571,1722751428147,-151.0,0.00014136,2]
[334083572,1722751428169,-243.26625754,0.00014155,2]
[334083573,1722751428190,-193.960991,0.00014156,2]
[334083574,1722751428212,-193.960991,0.00014156,2]
[334083575,1722751428234,-151.0,0.00014156,2]
[334083576,1722751428260,-151.0,0.00014156,2]
[334083577,1722751428283,-151.0,0.00014156,2]
[334083578,1722751428307,-151.0,0.00014156,2]
[334083579,1722751428329,-151.0,0.00014156,2]
[334083580,1722751428351,-151.0,0.00014156,2]
[334083581,1722751428376,-151.0,0.00014156,2]
[334083582,1722751428397,-151.0,0.00014156,2]
[334083583,1722751428419,-3000.0,0.00014156,2]
[334083584,1722751428441,-182.2881603,0.00014178,2]
[334083585,1722751428463,-1118.65632901,0.00014188,5]
[334083586,1722751428485,-11174.6535719,0.00014189,2]
[334083587,1722751428507,-6961.5380237,0.00014189,2]
[334083588,1722751428530,-44030.65862993,0.00014199,2]
[334083589,1722751428552,-3976.81397414,0.00014261,2]
[334083590,1722751428574,-2727.84956445,0.00014261,2]
[334083591,1722751428595,-2342.18901954,0.00014283,2]
[334083592,1722751428616,-458.1193449,0.00014289,2]
[334083593,1722751428638,-7980.971763,0.00014289,2]
[334083594,1722751428659,-621.0,0.00014316,2]
[334083595,1722751428681,-1925.0,0.00014316,2]
[334083596,1722751428702,-21509.728,0.00014316,2]
[334083597,1722751428724,-1256.0,0.00014316,2]
[334083598,1722751428748,-1582.0,0.00014316,2]
[334083599,1722751428769,-1135.0,0.00014316,2]
[334083600,1722751428791,-811.0,0.00014316,2]
[334083601,1722751428816,-235.247,0.00014316,2]
[334083602,1722751428838,-451.0,0.00014316,2]
[334083603,1722751428860,-151.17,0.00014329,2]
[334083604,1722751428881,-155.0,0.00014451,2]
[334083605,1722751428903,-151.0,0.00014477,2]
[334083606,1722751428925,-151.0,0.0001449,2]
[334083607,1722751428947,-151.0,0.0001449,2]
[334083608,1722751428968,-151.404356,0.0001449,2]
[334083609,1722751428990,-848.33624,0.0001449,2]
[334083610,1722751429012,-848.33624,0.0001449,2]
[334083611,1722751429034,-606.455175,0.0001449,2]
[334083612,1722751429056,-606.455175,0.0001449,2]
[334083613,1722751429078,-151.0,0.00014501,2]
[334083614,1722751429100,-151.0,0.00014501,2]
[334083615,1722751429122,-151.0,0.00014501,2]
[334083616,1722751429144,-151.0,0.00014501,2]
[334083617,1722751429166,-236.4723607,0.00014519,2]
[334083618,1722751429188,-5628.0,0.00014543,2]
[334083619,1722751429209,-152.0,0.00014657,3]
[334083620,1722751429231,-5000.0,0.00014667,2]
[334083621,1722751429253,-1138.21529033,0.00014667,2]
[334083622,1722751429274,-1256.57005043,0.00014667,2]
[334083623,1722751429299,-209.0,0.0001473,2]
[334083624,1722751429320,-187.264903,0.00014755,2]
[334083625,1722751429342,-1112.51849528,0.00014899,2]
[334083626,1722751429365,-1177.09174419,0.00014982,2]
[334083627,1722751429386,-1184.1001296,0.00014988,2]
[334083628,1722751429465,-214.96444133,0.00014988,2]
[334083629,1722751429486,-493.26052295,0.00014988,2]
[334083630,1722751429508,-342.71790433,0.00014999,2]
[334083631,1722751429530,-183.99160323,0.00014999,2]
[334083632,1722751429551,-297.2590854,0.00014999,2]
[334083633,1722751429573,-365.46422797,0.00014999,2]
[334083634,1722751429594,-248.88958563,0.00014999,2]
[334083635,1722751429615,-359.25019926,0.00014999,2]
[334083636,1722751429637,-288.14054073,0.00014999,2]
[334083637,1722751429658,-209.11859325,0.00014999,2]
[334083638,1722751429680,-155.0,0.00014999,2]
[334083639,1722751429702,-264.29868304,0.00014999,2]
[334083640,1722751429723,-155.0,0.00015,2]
[334083641,1722751429745,-320.0,0.00015053,2]
[334083642,1722751429772,-162.02,0.00015055,2]
[334083643,1722751429794,-334.5742,0.00015062,2]
[334083644,1722751429815,-300.0,0.00015068,2]
[334083645,1722751429836,-6926.9133,0.00015072,2]
[334083646,1722751429856,-7476.2555,0.00015072,2]
[334083647,1722751429879,-160.66502107,0.00015082,2]
[334083648,1722751429901,-136667.832794,0.00015172,2]
[334083649,1722751429922,-151.0,0.00015172,2]
[334083650,1722751429944,-151.601312,0.00015172,2]
[334083651,1722751429966,-151.601312,0.00015172,2]
[334083652,1722751429988,-151.0,0.00015172,2]
[334083653,1722751430009,-255.866325,0.00015178,2]
[334083654,1722751430030,-151.0,0.00015178,2]
[334083655,1722751430051,-151.0,0.00015178,2]
[334083656,1722751430072,-151.0,0.00015178,2]
[334083657,1722751430093,-284.223948,0.00015178,2]
[334083658,1722751430113,-153.468124,0.00015178,2]
[334083659,1722751430134,-151.0,0.00015178,2]
[334083660,1722751430157,-193.960991,0.00015178,2]
[334083661,1722751430179,-193.960991,0.00015178,2]
[334083662,1722751430204,-151.0,0.00015178,2]
[334083663,1722751430227,-151.0,0.00015178,2]
[334083664,1722751430249,-151.0,0.00015178,2]
[334083665,1722751430271,-151.0,0.00015178,2]
[334083666,1722751430296,-151.0,0.00015178,2]
[334083667,1722751430317,-264.404512,0.00015178,2]
[334083668,1722751430340,-848.33624,0.00015178,2]
[334083669,1722751430364,-848.33624,0.00015178,2]
[334083670,1722751430387,-606.455175,0.00015178,2]
[334083671,1722751430408,-606.455175,0.00015178,2]
[334083672,1722751430430,-206.045679,0.00015178,2]
[334083673,1722751430452,-453.025564,0.00015178,2]
[334083674,1722751430474,-453.025564,0.00015178,2]
[334083675,1722751430496,-151.0,0.00015178,2]
[334083676,1722751430520,-163.58195019,0.00015179,2]
[334083677,1722751430542,-242349.0,0.00015182,2]
[334083678,1722751430564,-151.0,0.00015182,2]
[334083679,1722751430586,-151.0,0.00015182,2]
[334083680,1722751430607,-160.971025,0.00015182,2]
[334083681,1722751430628,-151.601312,0.00015182,2]
[334083682,1722751430650,-151.601312,0.00015182,2]
[334083683,1722751430671,-151.248301,0.00015182,2]
[334083684,1722751430693,-151.0,0.00015182,2]
[334083685,1722751430715,-151.0,0.00015182,2]
[334083686,1722751430737,-193.960991,0.00015182,2]
[334083687,1722751430760,-193.960991,0.00015182,2]
[334083688,1722751430781,-151.0,0.00015182,2]
[334083689,1722751430802,-151.0,0.00015182,2]
[334083690,1722751430824,-151.0,0.00015182,2]
[334083691,1722751430844,-151.0,0.00015182,2]
[334083692,1722751430867,-151.0,0.00015182,2]
[334083693,1722751430889,-151.0,0.00015182,2]
[334083694,1722751430910,-151.0,0.00015182,2]
[334083695,1722751430932,-151.0,0.00015182,2]
[334083696,1722751430953,-151.0,0.00015182,2]
[334083697,1722751430976,-848.33624,0.00015182,2]
[334083698,1722751430998,-848.33624,0.00015182,2]
[334083699,1722751431024,-606.455175,0.00015182,2]
[334083700,1722751431046,-606.455175,0.00015182,2]
[334083701,1722751431068,-206.045679,0.00015182,2]
[334083702,1722751431089,-453.025564,0.00015182,2]
[334083703,1722751431111,-453.025564,0.00015182,2]
[334083704,1722751431135,-151.0,0.00015182,2]
[334083705,1722751431157,-182.2881603,0.0001519,2]
[334083706,1722751431180,-3924.0,0.000152,3]
[334083707,1722751431201,-812.0,0.000153,3]
[334083708,1722751431223,-152.0,0.00015343,4]
[334083709,1722751431245,-623.79479974,0.00015369,2]
[334083710,1722751431268,-582.88298167,0.00015369,2]
[334083711,1722751431294,-601.26404448,0.00015369,2]
[334083712,1722751431315,-269.92942656,0.00015369,2]
[334083713,1722751431338,-13666.7832794,0.00015378,2]
[334083714,1722751431362,-10482.6347469,0.00015378,2]
[334083715,1722751431384,-44030.65862987,0.00015388,2]
[334083716,1722751431407,-10482.6347469,0.00015389,2]
[334083717,1722751431431,-327.59,0.000154,2]
[334083718,1722751431454,-13666.7832794,0.00015415,2]
[334083719,1722751431477,-834.54,0.00015425,2]
[334083720,1722751431500,-420.62,0.00015425,2]
[334083721,1722751431522,-420.62,0.00015425,2]
[334083722,1722751431544,-834.54,0.00015425,2]
[334083723,1722751431566,-419.09,0.00015425,2]
[334083724,1722751431588,-834.54,0.00015425,2]
[334083725,1722751431609,-167.0,0.00015831,2]
[334083726,1722751431632,-437.24475045,0.0001587,2]
[334083727,1722751431654,-215.79631754,0.0001587,2]
[334083728,1722751431675,-542.86224425,0.0001587,2]
[334083729,1722751431699,-200.0,0.00015885,2]
[334083730,1722751431720,-155.0,0.00015897,2]
[334083731,1722751431750,-155.0,0.00015897,2]
[334083732,1722751431770,-519.74577912,0.00015897,2]
[334083733,1722751431792,-9507.3802,0.00015899,2]
[334083734,1722751431814,-155.1,0.00015912,2]
[334083735,1722751431836,-1265.79874477,0.00016,2]
[334083736,1722751431860,-650.0,0.00016,2]
[334083737,1722751431882,-152.0,0.00016029,5]
[334083738,1722751431904,-173.56915184,0.00016322,2]
[334083739,1722751431926,-13666.7832794,0.00016352,2]
[334083740,1722751431952,-10482.6347469,0.00016352,2]
[334083741,1722751431974,-167.0,0.00016354,2]
[334083742,1722751431996,-9022.4637333,0.00016362,2]
[334083743,1722751432018,-5620.7759768,0.00016362,2]
[334083744,1722751432039,-834.54,0.00016384,2]
[334083745,1722751432061,-411.15,0.00016384,2]
[334083746,1722751432083,-1177.09174419,0.00016385,2]
[334083747,1722751432106,-10482.6347469,0.00016411,2]
[334083748,1722751432128,-458.1193449,0.00016419,2]
[334083749,1722751432150,-6443.8711969,0.00016419,2]
[334083750,1722751432172,-151.0,0.00016422,2]
[334083751,1722751432195,-151.601312,0.00016422,2]
[334083752,1722751432218,-151.601312,0.00016422,2]
[334083753,1722751432243,-193.960991,0.00016422,2]
[334083754,1722751432268,-193.960991,0.00016422,2]
[334083755,1722751432292,-151.0,0.00016422,2]
[334083756,1722751432315,-244.034219,0.00016422,2]
[334083757,1722751432337,-151.0,0.00016422,2]
[334083758,1722751432362,-151.0,0.00016422,2]
[334083759,1722751432384,-151.0,0.00016422,2]
[334083760,1722751432406,-151.0,0.00016422,2]
[334083761,1722751432428,-151.0,0.00016422,2]
[334083762,1722751432450,-151.0,0.00016422,2]
[334083763,1722751432472,-309.05361967,0.00016425,2]
[334083764,1722751432496,-300.0,0.00016438,2]
[334083765,1722751432520,-160.66502107,0.00016491,2]
[334083766,1722751432542,-151.0,0.00016493,2]
[334083767,1722751432564,-151.529935,0.00016493,2]
[334083768,1722751432586,-1762.59295861,0.000165,2]
[334083769,1722751432608,-206.045679,0.000165,2]
[334083770,1722751432631,-453.025564,0.000165,2]
[334083771,1722751432653,-453.025564,0.000165,2]
[334083772,1722751432677,-151.0,0.000165,2]
[334083773,1722751432700,-27333.5665588,0.00016567,2]
[334083774,1722751432723,-20965.2694938,0.00016567,2]
[334083775,1722751432745,-44030.65862987,0.00016577,2]
[334083776,1722751432769,-2060.69,0.000166,2]
[334083777,1722751432792,-10482.6347469,0.00016681,2]
[334083778,1722751432815,-13666.7832794,0.0001669,2]
[334083779,1722751432842,-10482.6347469,0.0001669,2]
[334083780,1722751432864,-151.0,0.00016691,2]
[334083781,1722751432887,-2808.809519,0.00016691,2]
[334083782,1722751432910,-2808.809519,0.00016691,2]
[334083783,1722751432932,-151.0,0.00016691,2]
[334083784,1722751432956,-151.0,0.00016691,2]
[334083785,1722751432979,-151.0,0.00016691,2]
[334083786,1722751433002,-151.0,0.00016691,2]
[334083787,1722751433024,-151.0,0.00016691,2]
[334083788,1722751433047,-8489.52473108,0.00016691,2]
[334083828,1722751832324,-442.78390852,9.805e-05,2]
[334083832,1722751832360,-557.21609148,9.805e-05,2]
[334083834,1722751832369,-367.59994124,0.00011105,2]
[334083836,1722751832379,-4410.53,0.000134,2]
[334083837,1722751832388,-155.54,0.00013524,2]
[334083838,1722751832397,-22641.85233073,0.00013579,2]
[334083839,1722751832407,-7271.36467137,0.0001367,2]
[334083840,1722751832416,-2727.84956445,0.00013799,2]
[334083841,1722751832426,-158.6102867,0.00013996,2]
[334083842,1722751832439,-2500.0,0.00014099,2]
[334083843,1722751832448,-365.46422797,0.00014451,2]
[334083844,1722751832458,-297.2590854,0.00014451,2]
[334083845,1722751832467,-400.0,0.00014519,2]
[334083846,1722751832477,-195.74064103,0.00014988,2]
[334083847,1722751832486,-771.0,0.000152,3]
[334083848,1722751832495,-2751.0,0.0001564,2]
[334083849,1722751832505,-200.0,0.00015744,2]
[334083850,1722751832516,-500.0,0.00015803,2]
[334083851,1722751832525,-203.44,0.0001588,2]
[334083852,1722751832534,-155.54,0.00016212,2]
[334083853,1722751832544,-420.62,0.00016384,2]
[334083854,1722751832555,-834.54,0.00016384,2]
[334083855,1722751832565,-834.54,0.00016384,2]
[334083856,1722751832576,-420.62,0.00016384,2]
[334083857,1722751832585,-834.0,0.00016384,2]
[334083858,1722751832594,-420.62,0.00016384,2]
[334083860,1722751832604,-420.22,0.00016384,2]
[334083862,1722751832613,-31021.87327676,0.00016601,2]
[334083864,1722751832623,-882.81880816,0.00016601,2]
[334083865,1722751832632,-6013.13298971,0.00016601,2]
[334083883,1722751838811,-308.951889,0.00016601,2]
[334083885,1722751838822,-932.0,0.00016601,2]
[334083924,1722751839201,-2745.91512129,0.00016601,2]
[334083926,1722751839211,-1386.34810549,0.00016611,2]
[334083928,1722751839220,-160.66502107,0.00016611,2]
[334083930,1722751839230,-4684.0836284,0.00016689,2]
[334083932,1722751839239,-729.1526412,0.00016689,2]
[334083934,1722751839248,-305.4128966,0.00016689,2]
[334083936,1722751839258,-1043.9095496,0.00016689,2]
[334083938,1722751839267,-5927.8055801,0.00016689,2]
[334083940,1722751839277,-243.26625753,0.0001669,2]
[334083942,1722751839287,-449.25291182,0.00016691,2]
[334083944,1722751839298,-1049.98025387,0.00016691,2]
[334083946,1722751839318,-155.0,0.00016691,2]
[334083949,1722751839331,-200.0,0.00016691,2]
[334083951,1722751839341,-201.38511401,0.00016691,2]
[334083953,1722751839354,-412.86502835,0.00016691,2]
[334083955,1722751839368,-512.73931513,0.00016691,2]
[334083957,1722751839378,-299.7844766,0.00016691,2]
[334083959,1722751839388,-170.38934769,0.00016691,2]
[334083961,1722751839397,-155.0,0.00016691,2]
[334083963,1722751839406,-181.70544246,0.00016691,2]
[334083965,1722751839416,-1860.0,0.00016691,2]
[334083967,1722751839426,-22082.53927075,0.00016691,2]
[334083969,1722751839439,-2822.49564,0.00016691,2]
[334083971,1722751839448,-2000.0,0.00016691,2]
[334083973,1722751839458,-200.0,0.00016691,2]
[334083975,1722751839467,-12482.1835114,0.00016691,2]
[334083977,1722751839476,-162268.385649,0.00016701,2]
[334083979,1722751839486,-1286.3577374,0.00016701,2]
[334083981,1722751839496,-151.0,0.00016701,2]
[334083983,1722751839505,-151.0,0.00016701,2]
[334083984,1722751839518,-151.0,0.00016701,2]
[334083986,1722751839528,-151.0,0.00016701,2]
[334083988,1722751839538,-151.0,0.00016701,2]
[334083990,1722751839547,-395.610157,0.00016701,2]
[334083992,1722751839556,-151.683561,0.00016701,2]
[334083994,1722751839565,-151.0,0.00016701,2]
[334083995,1722751839574,-151.0,0.00016701,2]
[334083997,1722751839583,-151.0,0.00016701,2]
[334083999,1722751839592,-151.0,0.00016701,2]
[334084001,1722751839602,-151.0,0.00016701,2]
[334084003,1722751839611,-333.395935,0.00016701,2]
[334084005,1722751839621,-201.640004,0.00016701,2]
[334084006,1722751839630,-306113.16711694,0.00016711,2]
[334084007,1722751839639,-151.0,0.00016711,2]
[334084008,1722751839649,-3640.25842373,0.00016711,2]
[334084009,1722751839659,-500.2594191,0.00016711,2]
[334084010,1722751839668,-151.0,0.00016711,2]
[334084011,1722751839677,-151.0,0.00016711,2]
[334084012,1722751839688,-151.0,0.00016711,2]
[334084013,1722751839697,-151.0,0.00016711,2]
[334084014,1722751839706,-151.0,0.00016711,2]
[334084015,1722751839715,-151.0,0.00016711,2]
[334084016,1722751839725,-151.0,0.00016711,2]
[334084017,1722751839734,-206.5594,0.00016711,2]
[334084019,1722751839743,-395.610157,0.00016711,2]
[334084020,1722751839752,-151.683561,0.00016711,2]
[334084022,1722751839761,-151.0,0.00016711,2]
[334084024,1722751839770,-151.0,0.00016711,2]
[334084026,1722751839780,-151.0,0.00016711,2]
[334084028,1722751839789,-544.431427,0.00016711,2]
[334084030,1722751839798,-151.0,0.00016711,2]
[334084032,1722751839808,-544.431427,0.00016711,2]
[334084034,1722751839817,-151.0,0.00016711,2]
[334084036,1722751839826,-151.0,0.00016711,2]
[334084038,1722751839835,-151.0,0.00016711,2]
[334084040,1722751839844,-151.0,0.00016711,2]
[334084042,1722751839854,-333.395935,0.00016711,2]
[334084044,1722751839863,-333.395935,0.00016711,2]
[334084046,1722751839872,-452.88435,0.00016711,2]
[334084048,1722751839881,-452.88435,0.00016711,2]
[334084050,1722751839891,-151.0,0.00016711,2]
[334084052,1722751839900,-151.0,0.00016711,2]
[334084053,1722751839909,-151.0,0.00016711,2]
[334084055,1722751839918,-894.881804,0.00016711,2]
[334084057,1722751839927,-151.0,0.00016711,2]
[334084059,1722751839937,-894.881804,0.00016711,2]
[334084061,1722751839946,-151.0,0.00016711,2]
[334084063,1722751839955,-251.899308,0.00016711,2]
[334084064,1722751839964,-251.899308,0.00016711,2]
[334084066,1722751839973,-151.0,0.00016711,2]
[334084068,1722751839982,-151.0,0.00016711,2]
[334084070,1722751839991,-344.490723,0.00016711,2]
[334084072,1722751840001,-344.490723,0.00016711,2]
[334084074,1722751840011,-151.0,0.00016711,2]
[334084076,1722751840020,-151.0,0.00016711,2]
[334084078,1722751840031,-151.0,0.00016711,2]
[334084080,1722751840041,-151.0,0.00016711,2]
[334084082,1722751840050,-151.0,0.00016711,2]
[334084084,1722751840060,-151.0,0.00016711,2]
[334084086,1722751840069,-151.0,0.00016711,2]
[334084088,1722751840078,-790.821896,0.00016711,2]
[334084090,1722751840087,-790.821896,0.00016711,2]
[334084092,1722751840096,-1233.159659,0.00016711,2]
[334084094,1722751840106,-151.0,0.00016711,2]
[334084096,1722751840115,-1233.159659,0.00016711,2]
[334084098,1722751840124,-154.408532,0.00016711,2]
[334084100,1722751840133,-151.0,0.00016711,2]
[334084102,1722751840142,-154.408532,0.00016711,2]
[334084104,1722751840151,-151.0,0.00016711,2]
[334084106,1722751840160,-328.739883,0.00016711,2]
[334084108,1722751840169,-151.0,0.00016711,2]
[334084110,1722751840178,-328.739883,0.00016711,2]
[334084111,1722751840190,-252.976739,0.00016711,2]
[334084113,1722751840199,-252.976739,0.00016711,2]
[334084115,1722751840207,-151.0,0.00016711,2]
[334084117,1722751840217,-151.0,0.00016711,2]
[334084119,1722751840226,-151.0,0.00016711,2]
[334084121,1722751840235,-964.765401,0.00016711,2]
[334084123,1722751840244,-964.765401,0.00016711,2]
[334084125,1722751840254,-154.53426,0.00016711,2]
[334084127,1722751840263,-154.53426,0.00016711,2]
[334084128,1722751840272,-226.512782,0.00016711,2]
[334084130,1722751840281,-151.0,0.00016711,2]
[334084132,1722751840290,-226.512782,0.00016711,2]
[334084134,1722751840300,-151.0,0.00016711,2]
[334084136,1722751840309,-230.37193,0.00016711,2]
[334084138,1722751840318,-230.37193,0.00016711,2]
[334084140,1722751840327,-509.001744,0.00016711,2]
[334084141,1722751840337,-151.0,0.00016711,2]
[334084143,1722751840346,-509.001744,0.00016711,2]
[334084145,1722751840357,-363.873105,0.00016711,2]
[334084147,1722751840366,-363.873105,0.00016711,2]
[334084149,1722751840376,-175.143646,0.00016712,2]
[334084151,1722751840385,-216.72,0.00016712,2]
[334084152,1722751840394,-152.0,0.00016714,6]
[334084154,1722751840405,-320.0,0.00016726,2]
[334084156,1722751840414,-12482.1835114,0.0001678,2]
[334084158,1722751840423,-500.0,0.000168,2]
[334084160,1722751840434,-500.0,0.000168,2]
[334084162,1722751840447,-283.63,0.000168,2]
[334084164,1722751840456,-500.0,0.000168,2]
[334084166,1722751840465,-346.91,0.000168,2]
[334084167,1722751840475,-387.28318322,0.00016848,2]
[334084169,1722751840484,-2000.0,0.00016858,2]
[334084171,1722751840493,-200.0,0.00016858,2]
[334084173,1722751840502,-167.0,0.00016876,2]
[334084175,1722751840512,-1107.43434204,0.00017,7]
[334084177,1722751840524,-150.0,0.00017011,2]
[334084178,1722751840533,-150.0,0.00017016,2]
[334084180,1722751840542,-2000.0,0.00017026,2]
[334084182,1722751840551,-200.0,0.00017026,2]
[334084184,1722751840561,-327.59,0.00017111,2]
[334084186,1722751840570,-300.0,0.00017162,2]
[334084189,1722751840580,-718.22493959,0.00017167,2]
[334084191,1722751840589,-2000.0,0.00017197,2]
[334084192,1722751840599,-200.0,0.00017197,2]
[334084194,1722751840609,-1386.34810536,0.00017203,2]
[334084196,1722751840619,-151.0,0.00017225,2]
[334084198,1722751840629,-151.0,0.00017225,2]
[334084200,1722751840638,-643.1788687,0.00017306,2]
[334084202,1722751840647,-621.0,0.00017316,2]
[334084204,1722751840657,-1925.0,0.00017316,2]
[334084206,1722751840666,-1256.0,0.00017316,2]
[334084207,1722751840676,-1135.0,0.00017316,2]
[334084208,1722751840685,-801.182,0.00017316,2]
[334084209,1722751840695,-451.0,0.00017316,2]
[334084210,1722751840704,-1941.39546904,0.00017369,2]
[334084211,1722751840713,-200.0,0.00017369,2]
[334084212,1722751840723,-187.507936,0.00017372,2]
[334084213,1722751840733,-1404.98946355,0.0001738,2]
[334084214,1722751840742,-167.0,0.00017399,2]
[334084215,1722751840751,-152.0,0.000174,7]
[334084216,1722751840761,-219.32952026,0.000174,5]
[334084217,1722751840771,-163.5819502,0.0001751,2]
[334084218,1722751840780,-24964.3670229,0.00017513,2]
[334084219,1722751840790,-31021.87327674,0.00017523,2]
[334084220,1722751840799,-175.143646,0.00017534,2]
[334084221,1722751840809,-643.1788687,0.00017546,2]
[334084222,1722751840818,-151.0,0.00017566,2]
[334084223,1722751840828,-151.0,0.00017566,2]
[334084224,1722751840838,-530.48,0.00017616,2]
[334084225,1722751840848,-155.4,0.00017616,2]
[334084226,1722751840859,-193.47,0.00017616,2]
[334084227,1722751840868,-238.42,0.00017616,2]
[334084228,1722751840878,-485.98,0.00017616,2]
[334084229,1722751840887,-500.0,0.00017711,2]
[334084230,1722751840898,-150.0,0.00017717,2]
[334084231,1722751840909,-150.0,0.00017725,2]
[334084232,1722751840920,-1500.0,0.00017727,2]
[334084233,1722751840931,-151.0,0.00017732,2]
[334084234,1722751840942,-1500.0,0.00017745,2]
[334084235,1722751840951,-300.0,0.00017748,2]
[334084236,1722751840961,-150.0,0.0001775,2]
[334084238,1722751840970,-150.0,0.00017752,2]
[334084240,1722751840980,-12482.1835114,0.00017759,2]
[334084242,1722751840990,-150.0,0.0001776,2]
[334084243,1722751841000,-150.0,0.00017763,2]
[334084244,1722751841011,-150.0,0.00017764,2]